{"text_format":"3","workbook":"xlsx","n_sheets":1,"sheets":["ATTACHMENT A. MarketBasket"],"not_rendered":{"defined_names":1},"read":"whole","date_system":"1900"}

{"sheet":"ATTACHMENT A. MarketBasket","index":0,"n_rows":28,"n_cols":12,"rows_kept":28,"merged":[[0,0,0,2],[0,3,0,5],[0,6,0,9],[24,3,24,8],[25,1,25,9],[26,1,26,9],[27,1,27,9]]}
["ATTACHMENT A. VIII.BIDDING SCHEDULE MARKET BASKET",null,null,"Name of Offeror:",{"$nulls":7},"1920-53MJ"]
["Item #","Size","Description","Estimated # Filters per 60 Day Replacement","6 x = 60 days","Estimated Annual ","Unit Price Filter","Unit Price Labor","Total Extended Unit Price Per Changeout","Total Extended Price (Column F x Column I)","Percentage % offered on filter provided per line item.","Manufacturer of Filter Offered"]
[1,"11.5 x 11.5 x 1 ","Filter Replacement service to include the filter, labor and all cost to complete the services as per specifications herein.",54,6,{"$f":"SUM(D3*E3)","v":324},null,null,{"$f":"SUM(G3+H3)","v":0},{"$f":"SUM(F3*I3)","v":0}]
[2,"12 x 12 x 1 ","Filter Replacement service to include the filter, labor and all cost to complete the services as per specifications herein.",40,6,{"$f":"SUM(D4*E4)","v":240},null,null,{"$f":"SUM(G4+H4)","v":0},{"$f":"SUM(F4*I4)","v":0}]
[3,"13.75 x 27.75 x 1 ","Filter Replacement service to include the filter, labor and all cost to complete the services as per specifications herein.",59,6,{"$f":"SUM(D5*E5)","v":354},null,null,{"$f":"SUM(G5+H5)","v":0},{"$f":"SUM(F5*I5)","v":0}]
[4,"14 x 20 x 1 ","Filter Replacement service to include the filter, labor and all cost to complete the services as per specifications herein.",47,6,{"$f":"SUM(D6*E6)","v":282},null,null,{"$f":"SUM(G6+H6)","v":0},{"$f":"SUM(F6*I6)","v":0}]
[5,"16 x 16 x 2 ","Filter Replacement service to include the filter, labor and all cost to complete the services as per specifications herein.",130,6,{"$f":"SUM(D7*E7)","v":780},null,null,{"$f":"SUM(G7+H7)","v":0},{"$f":"SUM(F7*I7)","v":0}]
[6,"16 x 20 x 1","Filter Replacement service to include the filter, labor and all cost to complete the services as per specifications herein.",131,6,{"$f":"SUM(D8*E8)","v":786},null,null,{"$f":"SUM(G8+H8)","v":0},{"$f":"SUM(F8*I8)","v":0}]
[7,"16 x 20 x 2 ","Filter Replacement service to include the filter, labor and all cost to complete the services as per specifications herein.",652,6,3912,null,null,0,0]
[8,"16 x 24 x 2 ","Filter Replacement service to include the filter, labor and all cost to complete the services as per specifications herein.",68,6,{"$f":"SUM(D10*E10)","v":408},null,null,{"$f":"SUM(G10+H10)","v":0},{"$f":"SUM(F10*I10)","v":0}]
[9,"16 x 25 x 1 ","Filter Replacement service to include the filter, labor and all cost to complete the services as per specifications herein.",157,6,942,null,null,0,0]
[10,"16 x 25 x 2 ","Filter Replacement service to include the filter, labor and all cost to complete the services as per specifications herein.",789,6,4734,null,null,0,0]
[11,"16 x 30 x 1 ","Filter Replacement service to include the filter, labor and all cost to complete the services as per specifications herein.",132,6,792,null,null,0,0]
[12,"20 x 20 x 1 ","Filter Replacement service to include the filter, labor and all cost to complete the services as per specifications herein.",5695,6,34170,null,null,0,0]
[13,"20 x 24 x 2 ","Filter Replacement service to include the filter, labor and all cost to complete the services as per specifications herein.",237,6,{"$f":"SUM(D15*E15)","v":1422},null,null,{"$f":"SUM(G15+H15)","v":0},{"$f":"SUM(F15*I15)","v":0}]
[14,"20 x 25 x 1 ","Filter Replacement service to include the filter, labor and all cost to complete the services as per specifications herein.",201,6,{"$f":"SUM(D16*E16)","v":1206},null,null,{"$f":"SUM(G16+H16)","v":0},{"$f":"SUM(F16*I16)","v":0}]
[15,"20 x 25 x 2","Filter Replacement service to include the filter, labor and all cost to complete the services as per specifications herein.",541,6,{"$f":"SUM(D17*E17)","v":3246},null,null,{"$f":"SUM(G17+H17)","v":0},{"$f":"SUM(F17*I17)","v":0}]
[16,"20 x 30 x 1 ","Filter Replacement service to include the filter, labor and all cost to complete the services as per specifications herein.",231,6,1386,null,null,0,0]
[17,"21 ¼  x  21 ¼  x 1  ","Filter Replacement service to include the filter, labor and all cost to complete the services as per specifications herein.",176,6,1056,null,null,0,0]
[18,"21 x 21 x 1 ","Filter Replacement service to include the filter, labor and all cost to complete the services as per specifications herein.",212,6,1272,null,null,0,0]
[19,"21.25 x 21.25 x 1 ","Filter Replacement service to include the filter, labor and all cost to complete the services as per specifications herein.",177,6,1062,null,null,0,0]
[20,"22 x 22 x 1 ","Filter Replacement service to include the filter, labor and all cost to complete the services as per specifications herein.",124,6,744,null,null,0,0]
[21,"n/a","Filter Replacement washable service to include the labor to remove and wash the existing filter and all cost to complete the services.  Unit price per filter to include all cost, labor, and materials as per specifications within.  The quantity listed includes an estimated 9 filters to be washed out every 60 days, for an annual total of 54.",9,6,54,null,null,0,0]
[22,"n/a","Provide annual coil steam cleaning service to include all materials, labor and all cost to complete the services per AC unit.",null,null,6000,null,null,0,0]
[{"$nulls":3},"Indicate Total Extended Price on VIII.Bidding Schedule Page 31",{"$nulls":5},{"$f":"SUM(J3:J24)","v":0}]
[null,"While this % discount will not be considered when determining the lowest bidder, however, it must be provided with your response to be considered."]
[null,"PROVIDE THE DISCOUNT PERCENTAGE OFF MANUFACTURER’S CURRENT LIST PRICE FOR ALL OTHER FILTERS AND SUPPLIES OFFERED BY VENDOR OUTSIDE OF THE 21 MARKET BASKET LINE ITEMS LISTED ABOVE:"]
[null,"The Percentage Discount shall apply to all applicable filters offered by Contractor which are not listed in the market basket bid schedule but would apply to the list of filters identified in the attachment labeled Filter Location."]